fUST/lending_fUST_20251001
["ID","MTS","AMOUNT","RATE_DAILY","PERIOD"]
[388718745,1759333860058,-500.0,0.00020273,2]
[388718746,1759333860068,-649.99,0.00020273,2]
[388718747,1759333860077,-580.85,0.00020273,2]
[388718748,1759333860086,-460.0,0.00020273,2]
[388718749,1759333860095,-520.92,0.00020273,2]
[388718750,1759333860106,-500.0,0.00020273,2]
[388718751,1759333860116,-500.0,0.00020273,2]
[388718752,1759333860127,-473.33838339,0.00020273,2]
[388718753,1759333860136,-500.0,0.00020273,2]
[388718754,1759333860145,-402.27948387,0.00020273,2]
[388718755,1759333860155,-500.0,0.00020273,2]
[388718756,1759333860164,-500.0,0.00020273,2]
[388718757,1759333860173,-198.01,0.00020273,2]
[388718758,1759333860183,-1252.39,0.00020273,2]
[388718759,1759333860193,-500.0,0.00020273,2]
[388718760,1759333860202,-500.0,0.00020273,2]
[388718761,1759333860212,-500.0,0.00020273,2]
[388718762,1759333860222,-673.11,0.00020273,2]
[388718763,1759333860231,-498.13,0.00020273,2]
[388718764,1759333860241,-593.58,0.00020273,2]
[388718765,1759333860250,-581.43,0.00020273,2]
[388718766,1759333860259,-500.0,0.00020273,2]
[388718767,1759333860268,-500.0,0.00020273,2]
[388718768,1759333860278,-392.35,0.00020273,2]
[388718769,1759333860288,-500.0,0.00020273,2]
[388718770,1759333860297,-500.0,0.00020273,2]
[388718771,1759333860306,-500.0,0.00020273,2]
[388718772,1759333860315,-507.58,0.00020273,2]
[388718773,1759333860325,-500.0,0.00020273,2]
[388718774,1759333860334,-500.0,0.00020273,2]
[388718775,1759333860343,-500.0,0.00020273,2]
[388718776,1759333860352,-500.0,0.00020273,2]
[388718777,1759333860362,-380.0,0.00020273,2]
[388718778,1759333860371,-287.28,0.00020273,2]
[388718779,1759333860380,-569.16249108,0.00020273,2]
[388718780,1759333860389,-500.0,0.00020273,2]
[388718781,1759333860399,-2788.89,0.00020273,2]
[388718782,1759333860408,-500.0,0.00020273,2]
[388718783,1759333860418,-500.0,0.00020273,2]
[388718784,1759333860427,-500.0,0.00020273,2]
[388718785,1759333860437,-505.38,0.00020273,2]
[388718786,1759333860446,-310.16662208,0.00020273,2]
[388718787,1759333860456,-3890.96,0.00020273,2]
[388718788,1759333860465,-500.0,0.00020273,2]
[388718789,1759333860474,-500.0,0.00020273,2]
[388718790,1759333860484,-500.0,0.00020273,2]
[388718791,1759333860496,-1253.5,0.00020273,2]
[388718792,1759333860506,-500.0,0.00020273,2]
[388718793,1759333860516,-500.0,0.00020273,2]
[388718794,1759333860526,-500.0,0.00020273,2]
[388718795,1759333860538,-500.0,0.00020273,2]
[388718796,1759333860549,-500.0,0.00020273,2]
[388718797,1759333860560,-500.0,0.00020273,2]
[388718798,1759333860570,-500.0,0.00020273,2]
[388718799,1759333860580,-500.0,0.00020273,2]
[388718800,1759333860589,-440.0,0.00020273,2]
[388718801,1759333860599,-401.01847724,0.00020273,2]
[388718802,1759333860608,-3737.4,0.00020273,2]
[388718803,1759333860618,-363.01149758,0.00020273,2]
[388718804,1759333860627,-500.0,0.00020273,2]
[388718805,1759333860636,-1411.25,0.00020273,2]
[388718806,1759333860645,-871.72,0.00020273,2]
[388718807,1759333860654,-642.5,0.00020273,2]
[388718808,1759333860664,-500.0,0.00020273,2]
[388718809,1759333860674,-500.0,0.00020273,2]
[388718810,1759333860683,-500.0,0.00020273,2]
[388718811,1759333860693,-1722.18,0.00020273,2]
[388718812,1759333860702,-942.64,0.00020273,2]
[388718813,1759333860712,-6817.05,0.00020273,2]
[388718814,1759333860721,-500.0,0.00020273,2]
[388718815,1759333860731,-198.54,0.00020273,2]
[388718816,1759333860740,-1262.31,0.00020273,2]
[388718817,1759333860750,-531.27,0.00020273,2]
[388718818,1759333860760,-500.0,0.00020273,2]
[388718819,1759333860770,-351.16158982,0.00020273,2]
[388718820,1759333860780,-500.0,0.00020273,2]
[388718821,1759333860790,-500.0,0.00020273,2]
[388718822,1759333860799,-500.0,0.00020273,2]
[388718823,1759333860809,-500.0,0.00020273,2]
[388718824,1759333860818,-500.0,0.00020273,2]
[388718825,1759333860828,-1321.2,0.00020273,2]
[388718826,1759333860839,-302.59,0.00020273,2]
[388718827,1759333860849,-500.0,0.00020273,2]
[388718828,1759333860858,-379.23781744,0.00020273,2]
[388718829,1759333860867,-1669.72,0.00020273,2]
[388718830,1759333860876,-500.0,0.00020273,2]
[388718831,1759333860886,-500.0,0.00020273,2]
[388718832,1759333860896,-500.0,0.00020273,2]
[388718833,1759333860905,-1541.89,0.00020273,2]
[388718834,1759333860915,-2758.88,0.00020273,2]
[388718835,1759333860924,-500.0,0.00020273,2]
[388718836,1759333860933,-1419.74,0.00020273,2]
[388718837,1759333860942,-500.0,0.00020273,2]
[388718838,1759333860952,-500.0,0.00020273,2]
[388718839,1759333860961,-500.0,0.00020273,2]
[388718840,1759333860971,-500.0,0.00020273,2]
[388718841,1759333860980,-500.0,0.00020273,2]
[388718842,1759333860989,-500.0,0.00020273,2]
[388718843,1759333860999,-500.0,0.00020273,2]
[388718844,1759333861008,-500.0,0.00020273,2]
[388718845,1759333861018,-848.44,0.00020273,2]
[388718846,1759333861027,-970.37,0.00020273,2]
[388718847,1759333861036,-500.0,0.00020273,2]
[388718848,1759333861045,-500.0,0.00020273,2]
[388718849,1759333861054,-500.0,0.00020273,2]
[388718850,1759333861063,-500.0,0.00020273,2]
[388718851,1759333861073,-500.0,0.00020273,2]
[388718852,1759333861082,-1114.51,0.00020273,2]
[388718853,1759333861091,-400.0,0.00020273,2]
[388718854,1759333861100,-500.0,0.00020273,2]
[388718855,1759333861109,-1468.27,0.00020273,2]
[388718856,1759333861118,-500.0,0.00020273,2]
[388718857,1759333861128,-500.0,0.00020273,2]
[388718858,1759333861137,-1185.1413291,0.00020273,2]
[388718859,1759333861147,-535.49,0.00020273,2]
[388718860,1759333861157,-480.0,0.00020273,2]
[388718861,1759333861166,-500.0,0.00020273,2]
[388718862,1759333861175,-734.32,0.00020273,2]
[388718863,1759333861185,-400.0,0.00020273,2]
[388718864,1759333861194,-500.0,0.00020273,2]
[388718865,1759333861204,-748.13,0.00020273,2]
[388718866,1759333861213,-500.0,0.00020273,2]
[388718867,1759333861223,-517.44,0.00020273,2]
[388718868,1759333861232,-659.58,0.00020273,2]
[388718869,1759333861242,-500.0,0.00020273,2]
[388718870,1759333861252,-500.0,0.00020273,2]
[388718871,1759333861261,-500.0,0.00020273,2]
[388718872,1759333861270,-500.0,0.00020273,2]
[388718873,1759333861280,-676.43,0.00020273,2]
[388718874,1759333861289,-500.0,0.00020273,2]
[388718875,1759333861300,-208.09349065,0.00020273,2]
[388718876,1759333861309,-2156.1,0.00020273,2]
[388718877,1759333861319,-500.0,0.00020273,2]
[388718878,1759333861329,-500.0,0.00020273,2]
[388718879,1759333861338,-695.11,0.00020273,2]
[388718880,1759333861348,-865.45,0.00020273,2]
[388718881,1759333861357,-500.0,0.00020273,2]
[388718882,1759333861366,-769.77,0.00020273,2]
[388718883,1759333861376,-500.0,0.00020273,2]
[388718884,1759333861385,-1357.74,0.00020273,2]
[388718885,1759333861395,-1031.59,0.00020273,2]
[388718886,1759333861404,-730.9,0.00020273,2]
[388718887,1759333861415,-500.0,0.00020273,2]
[388718888,1759333861506,-500.0,0.00020273,2]
[388718889,1759333861516,-2828.95,0.00020273,2]
[388718890,1759333861525,-1315.83,0.00020273,2]
[388718891,1759333861534,-500.0,0.00020273,2]
[388718892,1759333861545,-879.15,0.00020273,2]
[388718893,1759333861555,-400.0,0.00020273,2]
[388718894,1759333861564,-500.0,0.00020273,2]
[388718895,1759333861573,-694.27,0.00020273,2]
[388718896,1759333861582,-500.0,0.00020273,2]
[388718897,1759333861591,-500.0,0.00020273,2]
[388718898,1759333861601,-802.41,0.00020273,2]
[388718899,1759333861610,-774.88,0.00020273,2]
[388718900,1759333861619,-500.0,0.00020273,2]
[388718901,1759333861628,-500.0,0.00020273,2]
[388718902,1759333861637,-674.3,0.00020273,2]
[388718903,1759333861647,-500.0,0.00020273,2]
[388718904,1759333861656,-889.45,0.00020273,2]
[388718905,1759333861665,-576.8,0.00020273,2]
[388718906,1759333861674,-1941.25,0.00020273,2]
[388718907,1759333861684,-500.0,0.00020273,2]
[388718908,1759333861694,-946.8,0.00020273,2]
[388718909,1759333861703,-500.0,0.00020273,2]
[388718910,1759333861713,-500.0,0.00020273,2]
[388718911,1759333861722,-500.0,0.00020273,2]
[388718912,1759333861731,-1204.29,0.00020273,2]
[388718913,1759333861740,-500.0,0.00020273,2]
[388718914,1759333861750,-1006.66,0.00020273,2]
[388718915,1759333861759,-500.0,0.00020273,2]
[388718916,1759333861770,-4828.43,0.00020273,2]
[388718917,1759333861779,-958.76,0.00020273,2]
[388718918,1759333861788,-1026.85,0.00020273,2]
[388718919,1759333861798,-500.0,0.00020273,2]
[388718920,1759333861808,-500.0,0.00020274,2]
[388718921,1759333861817,-1752.22630735,0.0002029,2]
[388718922,1759333861827,-668.58627257,0.000203,2]
[388718923,1759333861836,-1307.00546117,0.000203,2]
[388718924,1759333861845,-1000.0,0.00020321,2]
[388718925,1759333861854,-500.0,0.00020321,2]
[388718926,1759333861863,-1000.0,0.00020321,2]
[388718927,1759333861873,-1000.0,0.00020321,2]
[388718928,1759333861882,-1000.0,0.00020321,2]
[388718929,1759333861891,-500.73488065,0.00020321,2]
[388718930,1759333861901,-1000.0,0.00020321,2]
[388718931,1759333861910,-500.0,0.00020321,2]
[388718932,1759333861920,-521.44036848,0.00020321,2]
[388718933,1759333861929,-500.0,0.00020321,2]
[388718934,1759333861938,-314.43405764,0.00020321,2]
[388718935,1759333861947,-1000.0,0.00020321,2]
[388718936,1759333861957,-500.0,0.00020321,2]
[388718937,1759333861966,-500.0,0.00020321,2]
[388718938,1759333861976,-1000.0,0.00020321,2]
[388718939,1759333861985,-500.0,0.00020321,2]
[388718940,1759333861994,-413.1103713,0.00020321,2]
[388718941,1759333862004,-1000.0,0.00020321,2]
[388718942,1759333862013,-1000.0,0.00020321,2]
[388718943,1759333862022,-500.0,0.00020321,2]
[388718944,1759333862031,-500.0,0.00020321,2]
[388718945,1759333862040,-151.0,0.000204,4]
[388718946,1759333862050,-983.5,0.00020438,3]
[388718947,1759333862059,-491.74,0.00020438,3]
[388718948,1759333862068,-500.0,0.00020482,2]
[388718949,1759333862077,-500.0,0.00020482,2]
[388718950,1759333862086,-1058.04,0.00020482,2]
[388718951,1759333862095,-500.0,0.00020482,2]
[388718952,1759333862105,-1803.78,0.00020482,2]
[388718953,1759333862114,-500.0,0.00020482,2]
[388718954,1759333862123,-500.0,0.00020482,2]
[388718955,1759333862133,-500.0,0.00020482,2]
[388718956,1759333862142,-1339.74,0.00020482,2]
[388718957,1759333862152,-500.0,0.00020482,2]
[388718958,1759333862161,-501.47345628,0.00020521,2]
[388718959,1759333862172,-561.17950999,0.00020521,2]
[388718960,1759333862182,-910.98424207,0.00020521,2]
[388718961,1759333862192,-500.0,0.00020521,2]
[388718962,1759333862201,-500.0,0.00020521,2]
[388718963,1759333862210,-1000.0,0.00020521,2]
[388718964,1759333862221,-1000.0,0.00020521,2]
[388718965,1759333862231,-500.0,0.00020521,2]
[388718966,1759333862241,-1000.0,0.00020521,2]
[388718967,1759333862250,-500.0,0.00020521,2]
[388718968,1759333862261,-500.0,0.00020521,2]
[388718969,1759333862271,-500.0,0.00020547,2]
[388718970,1759333862281,-500.0,0.00020547,2]
[388718971,1759333862291,-506.41,0.00020547,2]
[388718972,1759333862301,-500.0,0.00020547,2]
[388718973,1759333862310,-500.0,0.00020547,2]
[388718974,1759333862319,-440.0,0.00020547,2]
[388718975,1759333862328,-572.51,0.00020547,2]
[388718976,1759333862337,-561.65,0.00020547,2]
[388718977,1759333862346,-500.0,0.00020547,2]
[388718978,1759333862355,-500.0,0.00020547,2]
[388718979,1759333862365,-605.8063914,0.00020547,2]
[388718980,1759333862374,-500.0,0.00020547,2]
[388718981,1759333862383,-500.0,0.00020547,2]
[388718982,1759333862392,-500.0,0.00020547,2]
[388718983,1759333862401,-1013.78,0.00020547,2]
[388718984,1759333862410,-441.44,0.00020547,2]
[388718985,1759333862420,-500.0,0.00020547,2]
[388718986,1759333862429,-567.85327465,0.00020547,2]
[388718987,1759333862438,-500.0,0.00020547,2]
[388718988,1759333862448,-500.0,0.00020547,2]
[388718989,1759333862457,-500.0,0.00020547,2]
[388718990,1759333862466,-500.0,0.00020547,2]
[388718991,1759333862476,-500.0,0.00020547,2]
[388718992,1759333862485,-500.0,0.00020547,2]
[388718993,1759333862498,-500.0,0.00020547,2]
[388718994,1759333862507,-1182.83,0.00020547,2]
[388718995,1759333862516,-500.0,0.00020547,2]
[388718996,1759333862526,-500.0,0.00020547,2]
[388718997,1759333862536,-500.0,0.00020547,2]
[388718998,1759333862546,-500.0,0.00020547,2]
[388718999,1759333862555,-500.0,0.00020547,2]
[388719000,1759333862564,-500.0,0.00020547,2]
[388719001,1759333862575,-235.99,0.00020547,2]
[388719002,1759333862585,-1283.89,0.00020547,2]
[388719003,1759333862594,-379.19669334,0.00020547,2]
[388719004,1759333862603,-500.0,0.00020547,2]
[388719005,1759333862612,-500.0,0.00020547,2]
[388719006,1759333862621,-500.0,0.00020547,2]
[388719007,1759333862630,-500.0,0.00020547,2]
[388719008,1759333862639,-248.04,0.00020547,2]
[388719009,1759333862648,-500.0,0.00020547,2]
[388719010,1759333862658,-500.0,0.00020547,2]
[388719011,1759333862668,-308.93,0.00020547,2]
[388719012,1759333862678,-500.0,0.00020547,2]
[388719013,1759333862687,-500.0,0.00020547,2]
[388719014,1759333862698,-500.0,0.00020547,2]
[388719015,1759333862707,-500.0,0.00020547,2]
[388719016,1759333862717,-1699.56,0.00020547,2]
[388719017,1759333862727,-341.38,0.00020547,2]
[388719018,1759333862738,-432.7,0.00020547,2]
[388719019,1759333862747,-619.57,0.00020547,2]
[388719020,1759333862756,-378.47833337,0.00020547,2]
[388719021,1759333862766,-500.0,0.00020547,2]
[388719022,1759333862775,-500.0,0.00020547,2]
[388719023,1759333862784,-1245.38,0.00020547,2]
[388719024,1759333862793,-1218.45,0.00020547,2]
[388719025,1759333862804,-697.26,0.00020547,2]
[388719026,1759333862816,-500.0,0.00020547,2]
[388719027,1759333862908,-561.56,0.00020547,2]
[388719028,1759333862918,-500.0,0.00020547,2]
[388719029,1759333862928,-1139.49,0.00020547,2]
[388719030,1759333862938,-500.0,0.00020547,2]
[388719031,1759333862947,-649.99,0.00020547,2]
[388719032,1759333862957,-580.85,0.00020547,2]
[388719033,1759333862966,-500.0,0.00020547,2]
[388719034,1759333862975,-500.0,0.00020547,2]
[388719035,1759333862984,-500.0,0.00020547,2]
[388719036,1759333862994,-500.0,0.00020547,2]
[388719037,1759333863003,-1252.39,0.00020547,2]
[388719038,1759333863013,-500.0,0.00020547,2]
[388719039,1759333863022,-500.0,0.00020547,2]
[388719040,1759333863031,-500.0,0.00020547,2]
[388719041,1759333863040,-186.68,0.00020547,2]
[388719042,1759333863049,-673.11,0.00020547,2]
[388719043,1759333863058,-593.58,0.00020547,2]
[388719044,1759333863068,-581.43,0.00020547,2]
[388719045,1759333863077,-500.0,0.00020547,2]
[388719046,1759333863086,-500.0,0.00020547,2]
[388719047,1759333863096,-500.0,0.00020547,2]
[388719048,1759333863105,-500.0,0.00020547,2]
[388719049,1759333863115,-500.0,0.00020547,2]
[388719050,1759333863125,-500.0,0.00020547,2]
[388719051,1759333863134,-500.0,0.00020547,2]
[388719052,1759333863143,-500.0,0.00020547,2]
[388719053,1759333863153,-500.0,0.00020547,2]
[388719054,1759333863163,-420.0,0.00020547,2]
[388719055,1759333863173,-2788.89,0.00020547,2]
[388719056,1759333863182,-500.0,0.00020547,2]
[388719057,1759333863192,-500.0,0.00020547,2]
[388719058,1759333863202,-500.0,0.00020547,2]
[388719059,1759333863211,-505.38,0.00020547,2]
[388719060,1759333863221,-3890.96,0.00020547,2]
[388719061,1759333863231,-500.0,0.00020547,2]
[388719062,1759333863242,-500.0,0.00020547,2]
[388719063,1759333863251,-1253.5,0.00020547,2]
[388719064,1759333863262,-500.0,0.00020547,2]
[388719065,1759333863271,-500.0,0.00020547,2]
[388719066,1759333863281,-500.0,0.00020547,2]
[388719067,1759333863290,-500.0,0.00020547,2]
[388719068,1759333863300,-500.0,0.00020547,2]
[388719069,1759333863310,-500.0,0.00020547,2]
[388719070,1759333863319,-500.0,0.00020547,2]
[388719071,1759333863328,-500.0,0.00020547,2]
[388719072,1759333863338,-3737.4,0.00020547,2]
[388719073,1759333863347,-500.0,0.00020547,2]
[388719074,1759333863357,-1411.25,0.00020547,2]
[388719075,1759333863366,-871.72,0.00020547,2]
[388719076,1759333863376,-642.5,0.00020547,2]
[388719077,1759333863385,-500.0,0.00020547,2]
[388719078,1759333863393,-500.0,0.00020547,2]
[388719079,1759333863403,-500.0,0.00020547,2]
[388719080,1759333863412,-1722.18,0.00020547,2]
[388719081,1759333863422,-942.64,0.00020547,2]
[388719082,1759333863431,-6817.05,0.00020547,2]
[388719083,1759333863440,-500.0,0.00020547,2]
[388719084,1759333863450,-1262.31,0.00020547,2]
[388719085,1759333863459,-531.27,0.00020547,2]
[388719086,1759333863469,-500.0,0.00020547,2]
[388719087,1759333863478,-500.0,0.00020547,2]
[388719088,1759333863489,-517.74,0.00020547,2]
[388719089,1759333863503,-249.51,0.00020547,2]
[388719090,1759333863512,-500.0,0.00020547,2]
[388719091,1759333863521,-1321.2,0.00020547,2]
[388719092,1759333863531,-500.0,0.00020547,2]
[388719093,1759333863542,-500.0,0.00020547,2]
[388719094,1759333863551,-1669.72,0.00020547,2]
[388719095,1759333863560,-500.0,0.00020547,2]
[388719096,1759333863571,-500.0,0.00020547,2]
[388719097,1759333863580,-500.0,0.00020547,2]
[388719098,1759333863588,-1541.89,0.00020547,2]
[388719099,1759333863597,-2758.88,0.00020547,2]
[388719100,1759333863606,-500.0,0.00020547,2]
[388719101,1759333863615,-1419.74,0.00020547,2]
[388719102,1759333863625,-258.59536996,0.00020547,2]
[388719103,1759333863634,-500.0,0.00020547,2]
[388719104,1759333863643,-500.0,0.00020547,2]
[388719105,1759333863653,-500.0,0.00020547,2]
[388719106,1759333863662,-500.0,0.00020547,2]
[388719107,1759333863672,-500.0,0.00020547,2]
[388719108,1759333863681,-500.0,0.00020547,2]
[388719109,1759333863690,-500.0,0.00020547,2]
[388719110,1759333863700,-848.44,0.00020547,2]
[388719111,1759333863709,-970.37,0.00020547,2]
[388719112,1759333863719,-545.61,0.00020547,2]
[388719113,1759333863728,-500.0,0.00020547,2]
[388719114,1759333863737,-500.0,0.00020547,2]
[388719115,1759333863747,-500.0,0.00020547,2]
[388719116,1759333863756,-500.0,0.00020547,2]
[388719117,1759333863766,-1114.51,0.00020547,2]
[388719118,1759333863775,-500.0,0.00020547,2]
[388719119,1759333863784,-1468.27,0.00020547,2]
[388719120,1759333863793,-500.0,0.00020547,2]
[388719121,1759333863802,-500.0,0.00020547,2]
[388719122,1759333863812,-535.49,0.00020547,2]
[388719123,1759333863821,-500.0,0.00020547,2]
[388719124,1759333863830,-734.32,0.00020547,2]
[388719125,1759333863839,-500.0,0.00020547,2]
[388719126,1759333863849,-748.13,0.00020547,2]
[388719127,1759333863858,-500.0,0.00020547,2]
[388719128,1759333863868,-517.44,0.00020547,2]
[388719129,1759333863878,-659.58,0.00020547,2]
[388719130,1759333863888,-500.0,0.00020547,2]
[388719131,1759333863898,-373.32245917,0.00020547,2]
[388719132,1759333863907,-421.15,0.00020547,2]
[388719133,1759333863917,-500.0,0.00020547,2]
[388719134,1759333863927,-676.43,0.00020547,2]
[388719135,1759333863936,-500.0,0.00020547,2]
[388719136,1759333863945,-2156.1,0.00020547,2]
[388719137,1759333863955,-500.0,0.00020547,2]
[388719138,1759333863964,-500.0,0.00020547,2]
[388719139,1759333863974,-695.11,0.00020547,2]
[388719140,1759333863983,-865.45,0.00020547,2]
[388719141,1759333863994,-500.0,0.00020547,2]
[388719142,1759333864004,-769.77,0.00020547,2]
[388719143,1759333864013,-401.66,0.00020547,2]
[388719144,1759333864022,-1357.74,0.00020547,2]
[388719145,1759333864031,-1031.59,0.00020547,2]
[388719146,1759333864040,-730.9,0.00020547,2]
[388719147,1759333864050,-500.0,0.00020547,2]
[388719148,1759333864060,-198.97835277,0.00020547,2]
[388719149,1759333864069,-2828.95,0.00020547,2]
[388719150,1759333864078,-1315.83,0.00020547,2]
[388719151,1759333864087,-500.0,0.00020547,2]
[388719152,1759333864096,-879.15,0.00020547,2]
[388719153,1759333864105,-500.0,0.00020547,2]
[388719154,1759333864115,-694.27,0.00020547,2]
[388719155,1759333864197,-500.0,0.00020547,2]
[388719156,1759333864206,-500.0,0.00020547,2]
[388719157,1759333864215,-802.41,0.00020547,2]
[388719158,1759333864224,-774.88,0.00020547,2]
[388719159,1759333864234,-500.0,0.00020547,2]
[388719160,1759333864243,-500.0,0.00020547,2]
[388719161,1759333864252,-674.3,0.00020547,2]
[388719162,1759333864261,-192.55651801,0.00020547,2]
[388719163,1759333864270,-889.45,0.00020547,2]
[388719164,1759333864280,-576.8,0.00020547,2]
[388719165,1759333864289,-1941.25,0.00020547,2]
[388719166,1759333864298,-500.0,0.00020547,2]
[388719167,1759333864307,-946.8,0.00020547,2]
[388719168,1759333864316,-599.04,0.00020547,2]
[388719169,1759333864326,-500.0,0.00020547,2]
[388719170,1759333864336,-500.0,0.00020547,2]
[388719171,1759333864346,-1204.29,0.00020547,2]
[388719172,1759333864355,-500.0,0.00020547,2]
[388719173,1759333864364,-1006.66,0.00020547,2]
[388719174,1759333864373,-384.54104771,0.00020547,2]
[388719175,1759333864383,-4828.43,0.00020547,2]
[388719176,1759333864392,-958.76,0.00020547,2]
[388719177,1759333864401,-1026.85,0.00020547,2]
[388719178,1759333864410,-500.0,0.00020547,2]
[388719179,1759333864419,-500.0,0.00020548,2]
[388719180,1759333864430,-151.0,0.00020548,7]
[388719181,1759333864440,-151.0,0.00020548,7]
[388719182,1759333864449,-176.85534,0.00020548,7]
[388719183,1759333864458,-1371.19296058,0.0002061,2]
[388719184,1759333864467,-1445.5092195,0.000207,2]
[388719185,1759333864476,-405.8369216,0.00020727,2]
[388719186,1759333864486,-460.0,0.00020756,2]
[388719187,1759333864500,-500.0,0.00020756,2]
[388719188,1759333864509,-1058.04,0.00020756,2]
[388719189,1759333864518,-500.0,0.00020756,2]
[388719190,1759333864528,-1803.78,0.00020756,2]
[388719191,1759333864539,-480.0,0.00020756,2]
[388719192,1759333864548,-500.0,0.00020756,2]
[388719193,1759333864557,-523.44362053,0.00020756,2]
[388719194,1759333864567,-1339.74,0.00020756,2]
[388719195,1759333864576,-500.0,0.00020756,2]
[388719196,1759333864585,-420.0,0.00020792,2]
[388719197,1759333864596,-1500.0,0.00020816,2]
[388719198,1759333864605,-1000.0,0.00020816,2]
[388719199,1759333864614,-478.918,0.00020816,2]
[388719200,1759333864623,-2000.0,0.00020816,2]
[388719201,1759333864633,-2000.0,0.00020816,2]
[388719202,1759333864642,-1782.94653091,0.00020816,2]
[388719203,1759333864651,-2000.0,0.00020816,2]
[388719204,1759333864660,-2000.0,0.00020816,2]
[388719205,1759333864669,-1500.0,0.00020816,2]
[388719206,1759333864679,-1000.0,0.00020816,2]
[388719207,1759333864688,-500.0,0.00020821,2]
[388719208,1759333864698,-467.26,0.00020821,2]
[388719209,1759333864707,-506.41,0.00020821,2]
[388719210,1759333864717,-250.45,0.00020821,2]
[388719211,1759333864726,-500.0,0.00020821,2]
[388719212,1759333864735,-500.0,0.00020821,2]
[388719213,1759333864744,-500.0,0.00020821,2]
[388719214,1759333864765,-500.0,0.00020821,2]
[388719215,1759333864780,-500.0,0.00020821,2]
[388719216,1759333864797,-500.0,0.00020821,2]
[388719217,1759333864814,-1013.78,0.00020821,2]
[388719218,1759333864832,-500.0,0.00020821,2]
[388719219,1759333864847,-500.0,0.00020821,2]
[388719220,1759333864865,-554.45175817,0.00020821,2]
[388719221,1759333864879,-500.0,0.00020821,2]
[388719222,1759333864897,-500.0,0.00020821,2]
[388719223,1759333864917,-500.0,0.00020821,2]
[388719224,1759333864936,-440.0,0.00020821,2]
[388719225,1759333864949,-500.0,0.00020821,2]
[388719226,1759333864967,-1182.83,0.00020821,2]
[388719227,1759333864981,-210.71658093,0.00020821,2]
[388719228,1759333864997,-500.0,0.00020821,2]
[388719229,1759333865009,-500.0,0.00020821,2]
[388719230,1759333865024,-500.0,0.00020821,2]
[388719231,1759333865040,-500.0,0.00020821,2]
[388719232,1759333865054,-500.0,0.00020821,2]
[388719233,1759333865068,-1283.89,0.00020821,2]
[388719234,1759333865083,-500.0,0.00020821,2]
[388719235,1759333865097,-500.0,0.00020821,2]
[388719236,1759333865111,-500.0,0.00020821,2]
[388719237,1759333865125,-291.22438043,0.00020821,2]
[388719238,1759333865139,-500.0,0.00020821,2]
[388719239,1759333865153,-500.0,0.00020821,2]
[388719240,1759333865168,-500.0,0.00020821,2]
[388719241,1759333865184,-500.0,0.00020821,2]
[388719242,1759333865198,-500.0,0.00020821,2]
[388719243,1759333865212,-500.0,0.00020821,2]
[388719244,1759333865226,-1699.56,0.00020821,2]